[Event "Early-Titled-Tuesday-Blitz-March-26-2024"]
[Site "Chess.com"]
[Date "2024.03.26"]
[Round "4"]
[White "AryanTari"]
[Black "Stanbad1"]
[Result "1-0"]
[WhiteElo "3001"]
[BlackElo "2653"]
[TimeControl "180+1"]
[EndTime "8:38:16 PDT"]
[Termination "AryanTari won by resignation"]

1. Nf3 {[%clk 0:03:00.9]} 1... Nf6 {[%clk 0:02:58.7]} 2. d4 {[%clk 0:03:00.7]}
2... e6 {[%clk 0:02:58.4]} 3. c4 {[%clk 0:03:00.1]} 3... d5 {[%clk 0:02:58.1]}
4. g3 {[%clk 0:02:56.4]} 4... Bb4+ {[%clk 0:02:56.2]} 5. Bd2 {[%clk 0:02:55.9]}
5... Be7 {[%clk 0:02:56.6]} 6. Bg2 {[%clk 0:02:56]} 6... O-O {[%clk 0:02:55.8]}
7. O-O {[%clk 0:02:56.3]} 7... c6 {[%clk 0:02:55.2]} 8. Qb3 {[%clk 0:02:50.8]}
8... Nbd7 {[%clk 0:02:49.5]} 9. Bb4 {[%clk 0:02:43.6]} 9... a5 {[%clk 0:02:41]}
10. Bxe7 {[%clk 0:02:42.7]} 10... Qxe7 {[%clk 0:02:41.9]} 11. Nbd2 {[%clk
0:02:42.7]} 11... a4 {[%clk 0:02:32.3]} 12. Qc2 {[%clk 0:02:42.5]} 12... b6
{[%clk 0:02:28.2]} 13. e4 {[%clk 0:02:36.8]} 13... Bb7 {[%clk 0:02:13.7]} 14. e5
{[%clk 0:02:05.7]} 14... Ne8 {[%clk 0:02:07.4]} 15. h4 {[%clk 0:02:05.5]} 15...
h6 {[%clk 0:02:06.4]} 16. Rfe1 {[%clk 0:02:04.2]} 16... Nc7 {[%clk 0:01:51.1]}
17. b3 {[%clk 0:01:52.6]} 17... axb3 {[%clk 0:01:46.5]} 18. axb3 {[%clk
0:01:53.5]} 18... c5 {[%clk 0:01:40.7]} 19. cxd5 {[%clk 0:01:34.8]} 19... Bxd5
{[%clk 0:01:37.2]} 20. Ne4 {[%clk 0:01:29]} 20... Nb5 {[%clk 0:01:21.8]} 21. Qd3
{[%clk 0:01:09.4]} 21... Nxd4 {[%clk 0:01:16.3]} 22. Nxd4 {[%clk 0:01:09.5]}
22... cxd4 {[%clk 0:01:17.2]} 23. Qxd4 {[%clk 0:01:07.2]} 23... Nc5 {[%clk
0:01:07.7]} 24. Nf6+ {[%clk 0:00:53.5]} 24... Kh8 {[%clk 0:00:46.9]} 25. Nxd5
{[%clk 0:00:53.6]} 25... exd5 {[%clk 0:00:44.2]} 26. Rxa8 {[%clk 0:00:49.5]}
26... Rxa8 {[%clk 0:00:45.1]} 27. Bxd5 {[%clk 0:00:38.5]} 27... Rd8 {[%clk
0:00:44.4]} 28. Qc4 {[%clk 0:00:38.7]} 28... Ne6 {[%clk 0:00:38.6]} 29. Bxe6
{[%clk 0:00:34.9]} 29... Qxe6 {[%clk 0:00:38.4]} 30. Qxe6 {[%clk 0:00:34.5]}
30... fxe6 {[%clk 0:00:39.1]} 31. Re4 {[%clk 0:00:33.1]} 31... Rd5 {[%clk
0:00:37.5]} 32. h5 {[%clk 0:00:32.4]} 32... Kg8 {[%clk 0:00:35.8]} 33. Kg2
{[%clk 0:00:26.3]} 33... Kf7 {[%clk 0:00:36.1]} 34. b4 {[%clk 0:00:26.7]} 34...
Ke7 {[%clk 0:00:34.2]} 35. Kh3 {[%clk 0:00:24.1]} 35... Rd2 {[%clk 0:00:32.2]}
36. f3 {[%clk 0:00:22.4]} 36... Rd3 {[%clk 0:00:23.5]} 37. Kg4 {[%clk
0:00:21.8]} 37... Rb3 {[%clk 0:00:23.4]} 38. f4 {[%clk 0:00:20.7]} 38... Kf7
{[%clk 0:00:22.4]} 39. Rc4 {[%clk 0:00:20.7]} 39... Rb1 {[%clk 0:00:17.7]} 40.
Rc7+ {[%clk 0:00:19.9]} 40... Kf8 {[%clk 0:00:17.9]} 41. Rc6 {[%clk 0:00:19.9]}
41... Rxb4 {[%clk 0:00:15.8]} 42. Rxe6 {[%clk 0:00:20.5]} 42... Kf7 {[%clk
0:00:16]} 43. Kf5 {[%clk 0:00:20.4]} 43... Rb3 {[%clk 0:00:15.3]} 44. g4 {[%clk
0:00:20.2]} 44... b5 {[%clk 0:00:15.3]} 45. Rb6 {[%clk 0:00:20.1]} 45... Rb1
{[%clk 0:00:09.8]} 46. Rb7+ {[%clk 0:00:20.4]} 46... Kf8 {[%clk 0:00:09.6]} 47.
Ke6 {[%clk 0:00:19]} 1-0

[Event "Early-Titled-Tuesday-Blitz-March-26-2024"]
[Site "Chess.com"]
[Date "2024.03.26"]
[Round "4"]
[White "Kunalm64"]
[Black "AA95"]
[Result "1/2-1/2"]
[WhiteElo "2633"]
[BlackElo "2477"]
[TimeControl "180+1"]
[EndTime "8:38:16 PDT"]
[Termination "Game drawn by repetition"]

1. e4 {[%clk 0:03:00]} 1... c5 {[%clk 0:02:59.7]} 2. Nf3 {[%clk 0:03:00.1]} 2...
d6 {[%clk 0:02:59.3]} 3. Bb5+ {[%clk 0:03:00.5]} 3... Nd7 {[%clk 0:02:58.8]} 4.
d4 {[%clk 0:03:00.2]} 4... cxd4 {[%clk 0:02:58.3]} 5. Qxd4 {[%clk 0:03:00.8]}
5... a6 {[%clk 0:02:58.8]} 6. Bxd7+ {[%clk 0:03:00.7]} 6... Qxd7 {[%clk
0:02:59.2]} 7. c4 {[%clk 0:03:00.6]} 7... b5 {[%clk 0:02:58.3]} 8. O-O {[%clk
0:02:53.4]} 8... Bb7 {[%clk 0:02:58.2]} 9. Nc3 {[%clk 0:02:49.3]} 9... e5 {[%clk
0:02:55.8]} 10. Qd3 {[%clk 0:02:47.4]} 10... bxc4 {[%clk 0:02:53.3]} 11. Qxc4
{[%clk 0:02:47.7]} 11... Rc8 {[%clk 0:02:53.3]} 12. Qd3 {[%clk 0:02:47.2]} 12...
Nf6 {[%clk 0:02:44.8]} 13. Bg5 {[%clk 0:02:46.5]} 13... Rxc3 {[%clk 0:02:30.3]}
14. Qxc3 {[%clk 0:02:21.7]} 14... Nxe4 {[%clk 0:02:30.1]} 15. Qe3 {[%clk
0:02:21.7]} 15... h6 {[%clk 0:01:51]} 16. Bh4 {[%clk 0:02:19.4]} 16... g5 {[%clk
0:01:45.1]} 17. Bg3 {[%clk 0:02:18.7]} 17... f5 {[%clk 0:01:31.3]} 18. Nxe5
{[%clk 0:02:09.6]} 18... dxe5 {[%clk 0:01:10.3]} 19. Bxe5 {[%clk 0:02:08.6]}
19... Bc5 {[%clk 0:01:03.3]} 20. Qb3 {[%clk 0:01:50.5]} 20... Nd2 {[%clk
0:00:46.2]} 21. Qh3 {[%clk 0:01:08.8]} 21... Nxf1 {[%clk 0:00:15.6]} 22. Bxh8
{[%clk 0:01:06.2]} 22... Nd2 {[%clk 0:00:13.2]} 23. Qxh6 {[%clk 0:00:58.2]}
23... Qd5 {[%clk 0:00:08.9]} 24. Re1+ {[%clk 0:00:42.1]} 24... Kd7 {[%clk
0:00:05.6]} 25. Qxg5 {[%clk 0:00:37.3]} 25... Bxf2+ {[%clk 0:00:05.1]} 26. Kxf2
{[%clk 0:00:37.1]} 26... Ne4+ {[%clk 0:00:05.3]} 27. Rxe4 {[%clk 0:00:37.2]}
27... Qxe4 {[%clk 0:00:05.2]} 28. Bc3 {[%clk 0:00:18]} 28... f4 {[%clk
0:00:02.4]} 29. Qg7+ {[%clk 0:00:15.7]} 29... Kc8 {[%clk 0:00:02.6]} 30. Qf8+
{[%clk 0:00:12.8]} 30... Kd7 {[%clk 0:00:02.4]} 31. Qf7+ {[%clk 0:00:12.6]}
31... Kc8 {[%clk 0:00:02]} 32. Qg8+ {[%clk 0:00:11.5]} 32... Kd7 {[%clk
0:00:02.3]} 33. Qg4+ {[%clk 0:00:10]} 33... Kc7 {[%clk 0:00:02.4]} 34. Qg7+
{[%clk 0:00:04.2]} 34... Kc8 {[%clk 0:00:02.3]} 35. Qh8+ {[%clk 0:00:03.9]}
35... Kd7 {[%clk 0:00:02.5]} 36. Qg7+ {[%clk 0:00:04]} 36... Kc8 {[%clk
0:00:02.6]} 1/2-1/2

[Event "Early-Titled-Tuesday-Blitz-March-26-2024"]
[Site "Chess.com"]
[Date "2024.03.26"]
[Round "4"]
[White "Hovik_Hayrapetyan"]
[Black "zverr1"]
[Result "1-0"]
[WhiteElo "2808"]
[BlackElo "2528"]
[TimeControl "180+1"]
[EndTime "8:38:18 PDT"]
[Termination "Hovik_Hayrapetyan won by checkmate"]

1. d4 {[%clk 0:03:00.9]} 1... Nf6 {[%clk 0:03:00]} 2. c4 {[%clk 0:03:00.9]} 2...
g6 {[%clk 0:03:00.4]} 3. Nc3 {[%clk 0:03:01.4]} 3... d5 {[%clk 0:03:00.9]} 4.
Nf3 {[%clk 0:03:00.5]} 4... Bg7 {[%clk 0:03:00.8]} 5. Qb3 {[%clk 0:02:58.1]}
5... c6 {[%clk 0:03:00.6]} 6. cxd5 {[%clk 0:02:56.5]} 6... cxd5 {[%clk
0:03:00.2]} 7. Bf4 {[%clk 0:02:56.6]} 7... O-O {[%clk 0:02:59.3]} 8. e3 {[%clk
0:02:54.9]} 8... Nc6 {[%clk 0:02:59.1]} 9. h3 {[%clk 0:02:53.3]} 9... a6 {[%clk
0:02:58.3]} 10. Be2 {[%clk 0:02:51.6]} 10... b5 {[%clk 0:02:57.4]} 11. O-O
{[%clk 0:02:49]} 11... Na5 {[%clk 0:02:57.2]} 12. Qd1 {[%clk 0:02:48.3]} 12...
Bb7 {[%clk 0:02:54.2]} 13. Rc1 {[%clk 0:02:47.8]} 13... Rc8 {[%clk 0:02:52.2]}
14. Ne5 {[%clk 0:02:45.9]} 14... Nd7 {[%clk 0:02:47.7]} 15. Nd3 {[%clk
0:02:41.1]} 15... Kh8 {[%clk 0:02:36.1]} 16. b3 {[%clk 0:02:37.2]} 16... f6
{[%clk 0:02:29.5]} 17. Bg4 {[%clk 0:02:34.6]} 17... f5 {[%clk 0:02:23.8]} 18.
Bf3 {[%clk 0:02:32.3]} 18... e6 {[%clk 0:02:23.5]} 19. Qd2 {[%clk 0:02:12.8]}
19... Qb6 {[%clk 0:02:00.1]} 20. Rc2 {[%clk 0:02:09.7]} 20... Nf6 {[%clk
0:01:18.2]} 21. Ne5 {[%clk 0:02:04.4]} 21... Rcd8 {[%clk 0:01:10.5]} 22. Be2
{[%clk 0:01:56.4]} 22... Nd7 {[%clk 0:01:04.1]} 23. Nf3 {[%clk 0:01:51.4]} 23...
Rc8 {[%clk 0:01:04.3]} 24. Rfc1 {[%clk 0:01:48.8]} 24... Nf6 {[%clk 0:01:04.8]}
25. Ne5 {[%clk 0:01:39.7]} 25... Qd8 {[%clk 0:01:01.6]} 26. f3 {[%clk
0:01:36.3]} 26... Nc6 {[%clk 0:00:57.6]} 27. Nd3 {[%clk 0:01:24.2]} 27... Nd7
{[%clk 0:00:50.3]} 28. Bf1 {[%clk 0:01:14.5]} 28... Re8 {[%clk 0:00:46.9]} 29.
Bd6 {[%clk 0:01:10.5]} 29... Bf8 {[%clk 0:00:46.5]} 30. Bxf8 {[%clk 0:01:08.3]}
30... Rxf8 {[%clk 0:00:47.4]} 31. Ne2 {[%clk 0:01:06.5]} 31... Qe7 {[%clk
0:00:46.1]} 32. Nef4 {[%clk 0:01:00.7]} 32... Qd6 {[%clk 0:00:46.1]} 33. Nc5
{[%clk 0:00:56.7]} 33... Nxc5 {[%clk 0:00:43.2]} 34. Rxc5 {[%clk 0:00:57.6]}
34... Ne7 {[%clk 0:00:33.6]} 35. Qc3 {[%clk 0:00:55.2]} 35... Rc6 {[%clk
0:00:28.5]} 36. Rxc6 {[%clk 0:00:52.7]} 36... Nxc6 {[%clk 0:00:27]} 37. Qc5
{[%clk 0:00:50.9]} 37... Qxc5 {[%clk 0:00:26.6]} 38. Rxc5 {[%clk 0:00:51.8]}
38... Re8 {[%clk 0:00:26.7]} 39. a4 {[%clk 0:00:47.5]} 39... b4 {[%clk
0:00:23.8]} 40. Bxa6 {[%clk 0:00:46.3]} 40... Nxd4 {[%clk 0:00:15.7]} 41. Bxb7
{[%clk 0:00:43.4]} 41... Nxb3 {[%clk 0:00:16.4]} 42. Rb5 {[%clk 0:00:42.3]}
42... g5 {[%clk 0:00:17]} 43. Nh5 {[%clk 0:00:41.7]} 43... Rb8 {[%clk
0:00:15.4]} 44. Rxb4 {[%clk 0:00:35.5]} 44... Nc5 {[%clk 0:00:15.5]} 45. a5
{[%clk 0:00:34.9]} 45... e5 {[%clk 0:00:09.7]} 46. Rb5 {[%clk 0:00:33.2]} 46...
d4 {[%clk 0:00:07.1]} 47. Rxc5 {[%clk 0:00:30.2]} 47... Rxb7 {[%clk 0:00:07.3]}
48. Rc8# {[%clk 0:00:30.4]} 1-0

[Event "Early-Titled-Tuesday-Blitz-March-26-2024"]
[Site "Chess.com"]
[Date "2024.03.26"]
[Round "4"]
[White "Oligan22"]
[Black "ahmedkandiliii"]
[Result "1-0"]
[WhiteElo "2430"]
[BlackElo "2522"]
[TimeControl "180+1"]
[EndTime "8:38:18 PDT"]
[Termination "Oligan22 won on time"]

1. d4 {[%clk 0:03:00.9]} 1... Nf6 {[%clk 0:02:59.5]} 2. Nf3 {[%clk 0:02:59.8]}
2... g6 {[%clk 0:02:59.4]} 3. Nbd2 {[%clk 0:02:59.2]} 3... c5 {[%clk 0:02:56.3]}
4. dxc5 {[%clk 0:02:57.9]} 4... Bg7 {[%clk 0:02:55.7]} 5. a3 {[%clk 0:02:57.1]}
5... O-O {[%clk 0:02:55.6]} 6. c4 {[%clk 0:02:50]} 6... a5 {[%clk 0:02:54.8]} 7.
e3 {[%clk 0:02:40.9]} 7... Qc7 {[%clk 0:02:51.3]} 8. Be2 {[%clk 0:02:36.1]} 8...
Na6 {[%clk 0:02:36]} 9. b4 {[%clk 0:02:24.1]} 9... Ne4 {[%clk 0:02:19.4]} 10.
Nd4 {[%clk 0:02:12.6]} 10... Nc3 {[%clk 0:02:08.7]} 11. Qb3 {[%clk 0:02:12.6]}
11... Nxe2 {[%clk 0:02:07.6]} 12. Kxe2 {[%clk 0:02:13.5]} 12... axb4 {[%clk
0:02:04.9]} 13. axb4 {[%clk 0:02:02.9]} 13... Nxc5 {[%clk 0:02:03.7]} 14. Qb1
{[%clk 0:02:01.2]} 14... Rxa1 {[%clk 0:01:51.8]} 15. Qxa1 {[%clk 0:02:02.1]}
15... Ne6 {[%clk 0:01:35.4]} 16. Bb2 {[%clk 0:02:01.7]} 16... Nxd4+ {[%clk
0:01:31.4]} 17. Bxd4 {[%clk 0:02:00.5]} 17... e5 {[%clk 0:01:19.8]} 18. Bc3
{[%clk 0:01:58.1]} 18... b6 {[%clk 0:01:17.8]} 19. f4 {[%clk 0:01:29.8]} 19...
d6 {[%clk 0:01:09.7]} 20. Re1 {[%clk 0:01:09.9]} 20... Bb7 {[%clk 0:01:07.3]}
21. Kf2 {[%clk 0:00:57.2]} 21... Ra8 {[%clk 0:00:59]} 22. Qb2 {[%clk 0:00:54.3]}
22... Qc6 {[%clk 0:00:58.5]} 23. e4 {[%clk 0:00:54.5]} 23... b5 {[%clk
0:00:48.3]} 24. fxe5 {[%clk 0:00:34.6]} 24... dxe5 {[%clk 0:00:39.7]} 25. Bxe5
{[%clk 0:00:34]} 25... Bxe5 {[%clk 0:00:34.1]} 26. Qxe5 {[%clk 0:00:34.9]} 26...
bxc4 {[%clk 0:00:32.9]} 27. Rc1 {[%clk 0:00:20.9]} 27... Ra2 {[%clk 0:00:28.1]}
28. Ke3 {[%clk 0:00:18.9]} 28... Qb6+ {[%clk 0:00:21.4]} 29. Qc5 {[%clk
0:00:17.2]} 29... Qf6 {[%clk 0:00:14.4]} 30. Rxc4 {[%clk 0:00:11.1]} 30... Qb2
{[%clk 0:00:09.9]} 31. Qd4 {[%clk 0:00:08]} 31... Ra3+ {[%clk 0:00:04]} 32. Kf4
{[%clk 0:00:06.8]} 32... Qxd4 {[%clk 0:00:02.9]} 33. Rxd4 {[%clk 0:00:07]} 33...
Ra2 {[%clk 0:00:03.8]} 34. Rd7 {[%clk 0:00:07.3]} 34... Bc6 {[%clk 0:00:02.5]}
35. Rd8+ {[%clk 0:00:08.2]} 1-0

[Event "Early-Titled-Tuesday-Blitz-March-26-2024"]
[Site "Chess.com"]
[Date "2024.03.26"]
[Round "4"]
[White "MatthewG-p4p"]
[Black "Chess_Gainz"]
[Result "0-1"]
[WhiteElo "2866"]
[BlackElo "2567"]
[TimeControl "180+1"]
[EndTime "8:38:19 PDT"]
[Termination "Chess_Gainz won by checkmate"]

1. e4 {[%clk 0:02:51.5]} 1... c5 {[%clk 0:02:56.2]} 2. a3 {[%clk 0:02:50]} 2...
g6 {[%clk 0:02:55.1]} 3. Nc3 {[%clk 0:02:46.5]} 3... Bg7 {[%clk 0:02:54.8]} 4.
Bc4 {[%clk 0:02:47.3]} 4... Nc6 {[%clk 0:02:54.5]} 5. d3 {[%clk 0:02:45.9]} 5...
d6 {[%clk 0:02:54.1]} 6. Ba2 {[%clk 0:02:41.8]} 6... Nf6 {[%clk 0:02:53.2]} 7.
f4 {[%clk 0:02:33.6]} 7... O-O {[%clk 0:02:50.6]} 8. Nf3 {[%clk 0:02:33.7]} 8...
e6 {[%clk 0:02:50.9]} 9. O-O {[%clk 0:02:26.5]} 9... Rb8 {[%clk 0:02:47.2]} 10.
Qe1 {[%clk 0:02:19.6]} 10... b5 {[%clk 0:02:45.1]} 11. Qh4 {[%clk 0:01:59.2]}
11... b4 {[%clk 0:02:44.6]} 12. axb4 {[%clk 0:01:57.5]} 12... Nxb4 {[%clk
0:02:44.8]} 13. Bb1 {[%clk 0:01:52.2]} 13... Qb6 {[%clk 0:02:18.3]} 14. Kh1
{[%clk 0:01:28.8]} 14... Bb7 {[%clk 0:01:53.8]} 15. f5 {[%clk 0:01:23.1]} 15...
exf5 {[%clk 0:01:39.9]} 16. exf5 {[%clk 0:01:15.2]} 16... d5 {[%clk 0:01:24.5]}
17. Bh6 {[%clk 0:01:10.2]} 17... d4 {[%clk 0:01:16]} 18. Na4 {[%clk 0:01:00.3]}
18... Qc6 {[%clk 0:01:12]} 19. c3 {[%clk 0:00:46.9]} 19... dxc3 {[%clk
0:01:05.8]} 20. bxc3 {[%clk 0:00:47.6]} 20... Nbd5 {[%clk 0:01:05.7]} 21. d4
{[%clk 0:00:43.8]} 21... cxd4 {[%clk 0:01:00.2]} 22. cxd4 {[%clk 0:00:41]} 22...
Bxh6 {[%clk 0:00:35.2]} 23. Qxh6 {[%clk 0:00:41.9]} 23... Ng4 {[%clk 0:00:35.7]}
24. Qh4 {[%clk 0:00:39]} 24... Nde3 {[%clk 0:00:35.4]} 25. Bd3 {[%clk
0:00:11.7]} 25... Nxf1 {[%clk 0:00:27.5]} 26. Bxf1 {[%clk 0:00:12.6]} 26... Ne3
{[%clk 0:00:20.6]} 27. f6 {[%clk 0:00:06.6]} 27... Nf5 {[%clk 0:00:21]} 28. Qg5
{[%clk 0:00:04.6]} 28... h6 {[%clk 0:00:20.8]} 29. Qf4 {[%clk 0:00:05]} 29...
Qe4 {[%clk 0:00:18.3]} 30. Qxe4 {[%clk 0:00:04.9]} 30... Bxe4 {[%clk 0:00:18.5]}
31. Ne5 {[%clk 0:00:05.8]} 31... Rb4 {[%clk 0:00:14.4]} 32. Nc5 {[%clk
0:00:06.4]} 32... Rxd4 {[%clk 0:00:12.9]} 33. Kg1 {[%clk 0:00:06.3]} 33... Re8
{[%clk 0:00:09.5]} 34. Nc4 {[%clk 0:00:03.5]} 34... Bd5 {[%clk 0:00:06.5]} 35.
Nb2 {[%clk 0:00:02.4]} 35... Ne3 {[%clk 0:00:06.1]} 36. Bd3 {[%clk 0:00:02.5]}
36... Nc4 {[%clk 0:00:04.2]} 37. Bxc4 {[%clk 0:00:02.4]} 37... Bxc4 {[%clk
0:00:04.5]} 38. Rxa7 {[%clk 0:00:01.9]} 38... Rd2 {[%clk 0:00:02.8]} 39. Nxc4
{[%clk 0:00:01.9]} 39... Re1# {[%clk 0:00:02.5]} 0-1

[Event "Early-Titled-Tuesday-Blitz-March-26-2024"]
[Site "Chess.com"]
[Date "2024.03.26"]
[Round "4"]
[White "1mbl4"]
[Black "DmitriiZakurdaev"]
[Result "1-0"]
[WhiteElo "2572"]
[BlackElo "2395"]
[TimeControl "180+1"]
[EndTime "8:38:19 PDT"]
[Termination "1mbl4 won by resignation"]

1. d4 {[%clk 0:02:59.8]} 1... d5 {[%clk 0:02:59.8]} 2. Nf3 {[%clk 0:02:59.4]}
2... Nf6 {[%clk 0:02:59.6]} 3. g3 {[%clk 0:02:59.7]} 3... e6 {[%clk 0:02:59.7]}
4. Bg2 {[%clk 0:03:00.3]} 4... Be7 {[%clk 0:03:00.6]} 5. O-O {[%clk 0:03:00.7]}
5... O-O {[%clk 0:03:01.5]} 6. c4 {[%clk 0:03:01.2]} 6... dxc4 {[%clk
0:03:02.4]} 7. Qc2 {[%clk 0:03:01.4]} 7... a6 {[%clk 0:03:02.5]} 8. Qxc4 {[%clk
0:03:01.5]} 8... b5 {[%clk 0:03:02.8]} 9. Qc2 {[%clk 0:03:01.7]} 9... Bb7 {[%clk
0:03:03.2]} 10. Bd2 {[%clk 0:03:02.1]} 10... Be4 {[%clk 0:02:58.8]} 11. Qc1
{[%clk 0:03:01.6]} 11... c6 {[%clk 0:02:56.6]} 12. Nc3 {[%clk 0:02:58]} 12...
Bxf3 {[%clk 0:02:54.4]} 13. Bxf3 {[%clk 0:02:57.4]} 13... Qxd4 {[%clk
0:02:48.9]} 14. Be3 {[%clk 0:02:56.1]} 14... Qd8 {[%clk 0:02:44.1]} 15. a4
{[%clk 0:02:50.9]} 15... b4 {[%clk 0:02:39.3]} 16. Rd1 {[%clk 0:02:50.5]} 16...
Qa5 {[%clk 0:02:34.5]} 17. Ne4 {[%clk 0:02:48.3]} 17... Nd5 {[%clk 0:02:17.5]}
18. Bc5 {[%clk 0:02:43.8]} 18... Bxc5 {[%clk 0:02:10]} 19. Qxc5 {[%clk
0:02:41.9]} 19... Qxc5 {[%clk 0:02:09.8]} 20. Nxc5 {[%clk 0:02:42.8]} 20... a5
{[%clk 0:02:02.9]} 21. e4 {[%clk 0:02:39]} 21... Nb6 {[%clk 0:02:03]} 22. Be2
{[%clk 0:02:27.2]} 22... Ra7 {[%clk 0:01:58.3]} 23. Rac1 {[%clk 0:02:20.2]}
23... Rc8 {[%clk 0:01:51.6]} 24. Rd6 {[%clk 0:02:17.3]} 24... g6 {[%clk
0:01:42.5]} 25. Rcd1 {[%clk 0:02:13.3]} 25... Kg7 {[%clk 0:01:32.5]} 26. f4
{[%clk 0:02:04.7]} 26... Rcc7 {[%clk 0:01:31.7]} 27. b3 {[%clk 0:01:22.2]} 27...
N8d7 {[%clk 0:01:31.4]} 28. Na6 {[%clk 0:01:22.2]} 28... Rxa6 {[%clk 0:01:17.8]}
29. Bxa6 {[%clk 0:01:20.6]} 29... Nc5 {[%clk 0:01:18.7]} 30. Rc1 {[%clk
0:01:00.2]} 30... Nxb3 {[%clk 0:00:09.3]} 31. Rcxc6 {[%clk 0:00:32.9]} 31...
Rxc6 {[%clk 0:00:10.2]} 32. Rxc6 {[%clk 0:00:33.8]} 32... Nxa4 {[%clk
0:00:10.7]} 33. Rc7 {[%clk 0:00:28.6]} 33... Nc3 {[%clk 0:00:10.3]} 34. Bc4
{[%clk 0:00:28]} 34... Nd4 {[%clk 0:00:09.2]} 35. e5 {[%clk 0:00:16.7]} 35... a4
{[%clk 0:00:05.8]} 36. Rd7 {[%clk 0:00:15.8]} 36... Nde2+ {[%clk 0:00:03.5]} 37.
Kf1 {[%clk 0:00:14.1]} 37... Nc1 {[%clk 0:00:03.2]} 38. Bxe6 {[%clk 0:00:13.5]}
38... b3 {[%clk 0:00:03.7]} 39. Rxf7+ {[%clk 0:00:12.9]} 39... Kh6 {[%clk
0:00:04.4]} 40. g4 {[%clk 0:00:12.8]} 40... b2 {[%clk 0:00:04.5]} 41. g5+ {[%clk
0:00:12.1]} 1-0

[Event "Early-Titled-Tuesday-Blitz-March-26-2024"]
[Site "Chess.com"]
[Date "2024.03.26"]
[Round "4"]
[White "profedechess93"]
[Black "VladimirKramnik"]
[Result "0-1"]
[WhiteElo "2649"]
[BlackElo "2997"]
[TimeControl "180+1"]
[EndTime "8:38:20 PDT"]
[Termination "VladimirKramnik won by checkmate"]

1. e4 {[%clk 0:03:00.9]} 1... e6 {[%clk 0:02:58.6]} 2. d4 {[%clk 0:03:00.8]}
2... d5 {[%clk 0:02:58.6]} 3. Nc3 {[%clk 0:03:01.4]} 3... Nf6 {[%clk 0:02:57.8]}
4. Bg5 {[%clk 0:03:01.1]} 4... dxe4 {[%clk 0:02:56.7]} 5. Nxe4 {[%clk
0:03:00.8]} 5... Nbd7 {[%clk 0:02:56.1]} 6. Nf3 {[%clk 0:02:59.4]} 6... h6
{[%clk 0:02:55.5]} 7. Nxf6+ {[%clk 0:02:59.5]} 7... Nxf6 {[%clk 0:02:55.4]} 8.
Bxf6 {[%clk 0:02:58.7]} 8... Qxf6 {[%clk 0:02:54.8]} 9. Bb5+ {[%clk 0:02:58.6]}
9... c6 {[%clk 0:02:53.4]} 10. Bd3 {[%clk 0:02:59.3]} 10... g6 {[%clk
0:02:47.5]} 11. Qe2 {[%clk 0:02:58]} 11... Bg7 {[%clk 0:02:46]} 12. h4 {[%clk
0:02:52.3]} 12... c5 {[%clk 0:02:40.1]} 13. Bb5+ {[%clk 0:02:47.6]} 13... Ke7
{[%clk 0:02:37.7]} 14. O-O-O {[%clk 0:02:31.2]} 14... Rd8 {[%clk 0:02:33.9]} 15.
Qc4 {[%clk 0:02:06.6]} 15... b6 {[%clk 0:02:33.5]} 16. Bc6 {[%clk 0:01:58.1]}
16... Rb8 {[%clk 0:02:24.7]} 17. g3 {[%clk 0:01:47.2]} 17... Kf8 {[%clk
0:02:12.8]} 18. h5 {[%clk 0:01:12.9]} 18... g5 {[%clk 0:01:55.9]} 19. c3 {[%clk
0:01:13.1]} 19... cxd4 {[%clk 0:01:53.8]} 20. Nxd4 {[%clk 0:01:07.4]} 20... Kg8
{[%clk 0:01:46.2]} 21. f4 {[%clk 0:00:47.6]} 21... gxf4 {[%clk 0:01:08.2]} 22.
gxf4 {[%clk 0:00:48.5]} 22... Qxf4+ {[%clk 0:01:08]} 23. Kb1 {[%clk 0:00:48.5]}
23... b5 {[%clk 0:01:04.8]} 24. Qc5 {[%clk 0:00:34.4]} 24... b4 {[%clk
0:00:57.7]} 25. Rhg1 {[%clk 0:00:19.4]} 25... bxc3 {[%clk 0:00:51.2]} 26. Qxc3
{[%clk 0:00:12]} 26... e5 {[%clk 0:00:37.3]} 27. Nb3 {[%clk 0:00:08.7]} 27...
Bf5+ {[%clk 0:00:34.6]} 28. Ka1 {[%clk 0:00:09]} 28... Rxd1+ {[%clk 0:00:30.7]}
29. Rxd1 {[%clk 0:00:09.9]} 29... e4 {[%clk 0:00:30.5]} 30. Rg1 {[%clk
0:00:09.5]} 30... Bg4 {[%clk 0:00:25.8]} 31. Qa5 {[%clk 0:00:09.3]} 31... Qf2
{[%clk 0:00:18.1]} 32. Rb1 {[%clk 0:00:09.1]} 32... Bf5 {[%clk 0:00:13.7]} 33.
Qc7 {[%clk 0:00:08.1]} 33... Rc8 {[%clk 0:00:12.1]} 34. Qd6 {[%clk 0:00:08.2]}
34... e3 {[%clk 0:00:10]} 35. Bd7 {[%clk 0:00:01.8]} 35... Bxb1 {[%clk
0:00:08.5]} 36. Nd4 {[%clk 0:00:01.3]} 36... Rd8 {[%clk 0:00:04.5]} 37. Nf5
{[%clk 0:00:01.3]} 37... Qxb2# {[%clk 0:00:03.2]} 0-1